bitfinex-derivatives/quotes_ETHF0:USTF0_20250810
["timestamp","ask_amount","ask_price","bid_price","bid_amount"]
[1754791112029,2.1134,4301.9,4301.8,22.4367]
[1754791112221,2.1134,4301.9,4301.8,23.1028]
[1754791112423,2.1134,4301.9,4301.8,1.4128]
[1754791113429,2.1134,4301.9,4301.8,23.0888]
[1754791113829,2.1134,4301.9,4301.8,22.6888]
[1754791114327,2.1134,4301.9,4301.5,3.2078]
[1754791114328,1.73734,4301.8,4301.6,0.4563]
[1754791114529,0.89193093,4301.6,4301.5,3.2078]
[1754791114728,2.16443093,4301.6,4301.5,3.2078]
[1754791114930,2.57831,4301.1,4301.0,3.4982]
[1754791115119,2.16443093,4301.1,4301.0,3.9767]
[1754791117532,2.1596,4300.6,4300.5,3.6863]
[1754791117728,2.21063093,4300.6,4300.5,4.2602]
[1754791117930,1.73343093,4300.6,4300.5,4.9722]
[1754791118234,1.73343093,4300.6,4300.5,5.4139]
[1754791119632,1.36243093,4300.6,4300.5,27.0829]
[1754791119834,1.73343093,4300.6,4300.5,27.0829]
[1754791121129,1.73343093,4300.6,4300.5,5.4139]
[1754791121333,1.29692,4300.1,4300.0,4.5691]
[1754791121536,2.62462,4300.1,4300.0,4.0019]
[1754791121731,2.67565093,4300.1,4300.0,4.0019]
[1754791122537,5.88344102,4300.1,4300.0,3.2078]
[1754791124129,1.29696,4299.7,4299.6,23.0323]
[1754791124330,1.73343093,4299.7,4299.6,24.03953872]
[1754791124534,1.6824,4299.7,4299.6,24.03953872]
[1754791126636,1.6824,4299.7,4299.6,24.04253872]
[1754791127330,1.0168,4299.7,4299.6,23.8801]
[1754791127530,2.14737,4300.6,4300.5,0.7941]
[1754791127732,2.14737,4300.6,4300.5,2.2061]
[1754791127733,2.19840093,4300.6,4300.5,2.2061]
[1754791128634,0.05103093,4300.6,4300.5,2.2061]
[1754791128831,0.82323093,4300.6,4300.5,2.2061]
[1754791129136,2.21063093,4300.6,4300.5,1.7644]
[1754791129637,1.73343093,4300.6,4300.5,2.2061]
[1754791130438,4.94122102,4300.6,4300.5,1.7061]
[1754791130638,5.41842102,4300.6,4300.5,2.0217]
[1754791132834,2.62462,4300.1,4300.0,3.5234]
[1754791133031,3.14067093,4300.1,4300.0,4.0906]
[1754791133233,0.55103093,4300.1,4300.0,5.4139]
[1754791134136,0.05103093,4300.1,4300.0,5.4139]
[1754791134436,2.21063093,4300.1,4300.0,5.4139]
[1754791134940,1.83963093,4300.1,4300.0,5.4139]
[1754791135130,1.36243093,4300.1,4300.0,5.4139]
[1754791136236,2.02803093,4300.1,4300.0,5.4139]
[1754791136639,1.52803093,4300.1,4300.0,5.4139]
[1754791138434,2.00523093,4300.1,4300.0,5.4139]
[1754791139329,2.00523093,4300.1,4300.0,5.5762702]
[1754791139842,1.52803093,4300.1,4300.0,5.5762702]
[1754791140537,0.4795,4300.6,4300.1,0.8448]
[1754791140843,1.3114,4300.6,4300.5,2.2061]
[1754791141037,4.51919009,4300.6,4300.5,27.0859]
[1754791141241,0.4772,4300.9,4300.5,27.0859]
[1754791141439,1.07264454,4301.8,4301.7,0.3156]
[1754791141640,1.77624,4301.8,4301.7,2.2061]
[1754791141838,3.21758454,4301.8,4301.7,2.2061]
[1754791142238,1.90454454,4301.8,4301.7,2.2061]
[1754791142444,0.8319,4301.8,4301.7,27.0859]
[1754791142640,0.2927,4301.8,4301.7,27.0859]
[1754791143243,1.3114,4301.8,4301.7,27.0859]
[1754791143544,2.1596,4301.8,4301.7,5.4139]
[1754791144542,2.1596,4301.8,4301.7,5.57439906]
[1754791144736,5.36739009,4301.8,4301.7,3.2078]
[1754791145446,5.86739009,4301.8,4301.7,3.2078]
[1754791146849,0.8565,4301.5,4301.4,1.7347]
[1754791147045,2.1523,4301.5,4301.4,0.70467557]
[1754791147342,1.2426,4301.8,4301.7,1.3055]
[1754791147647,1.8098,4301.8,4301.7,2.1311]
[1754791147843,2.6523,4301.8,4301.7,2.1311]
[1754791148543,2.6523,4301.8,4301.7,0.5442]
[1754791148743,2.1523,4301.5,4301.4,21.9636]
[1754791148947,2.1523,4301.5,4301.4,22.80129862]
[1754791149246,2.1523,4301.5,4301.4,23.95749862]
[1754791150249,0.46485,4301.7,4301.6,2.1311]
[1754791150546,1.8098,4301.8,4301.7,2.1311]
[1754791150748,5.38759009,4301.8,4301.7,2.1311]
[1754791150948,2.6523,4301.8,4301.7,2.1311]
[1754791151443,2.1798,4301.8,4301.7,2.1311]
[1754791151747,0.5,4301.8,4301.7,2.1311]
[1754791152960,1.2426,4301.8,4301.7,2.1311]
[1754791154053,1.2426,4301.8,4301.7,5.3389]
[1754791154647,0.7893,4301.8,4301.7,5.3389]
[1754791155249,0.5,4301.8,4301.7,5.3389]
[1754791155949,0.5,4301.8,4301.7,5.49914566]
[1754791156242,0.5,4301.8,4301.7,5.3389]
[1754791156446,0.5,4301.8,4301.7,5.49915461]
[1754791157349,0.45,4301.8,4301.7,5.49915461]
[1754791160552,0.45,4301.8,4301.7,5.4991642]
[1754791163745,6.67328429,4308.2,4301.7,5.4991642]
[1754791163746,0.4725,4303.5,4301.8,0.4307]
[1754791163952,1.3098,4302.7,4302.6,5.2583]
[1754791164251,1.3098,4302.7,4302.6,27.0725642]
[1754791165358,0.37,4303.7,4302.7,0.46474]
[1754791165560,2.61693,4303.7,4303.6,0.7283]
[1754791165858,2.61697,4303.4,4303.1,3.6385]
[1754791166058,0.8565,4303.4,4303.3,0.6121]
[1754791166254,4.06429009,4303.4,4303.3,0.6121]
[1754791166455,4.06429009,4303.4,4303.1,4.0853]
[1754791166758,2.1523,4303.2,4303.1,3.5054]
[1754791167354,2.1523,4303.2,4303.1,3.9361]
[1754791167558,5.82477009,4303.2,4303.1,3.2078]
[1754791167958,5.36009009,4303.2,4303.1,3.2078]
[1754791168153,2.1523,4303.2,4303.1,5.2583]
[1754791168661,2.1523,4303.2,4303.1,3.5054]
[1754791169160,2.1523,4303.2,4303.1,3.2078]
[1754791169553,5.36009009,4303.2,4303.1,3.2078]
[1754791169752,0.8565,4302.8,4302.7,21.648]
[1754791169952,0.8565,4302.8,4302.7,21.80838678]
[1754791169953,2.1523,4302.8,4302.7,21.80838678]
[1754791171052,0.4533,4303.2,4302.7,23.00137678]
[1754791171261,1.699,4303.4,4303.3,2.0505]
[1754791171461,1.2265,4303.4,4303.1,3.2078]
[1754791171661,1.3098,4303.3,4303.2,21.646]
[1754791171856,0.9934,4303.3,4303.2,23.6965]
[1754791172057,3.08138371,4304.2,4304.0,0.2976]
[1754791172263,1.29679851,4304.2,4304.1,2.0505]
[1754791172450,0.7041,4304.2,4304.1,2.0505]
[1754791172858,0.37,4304.4,4304.1,2.51505]
[1754791173053,1.6798,4304.3,4304.2,2.0505]
[1754791173553,2.61683,4304.3,4304.2,2.0505]
[1754791173757,0.4725,4303.9,4303.8,3.2078]
[1754791173958,2.1523,4303.9,4303.8,3.2078]
[1754791174353,2.1523,4303.9,4303.8,3.5054]
[1754791174552,2.1523,4303.9,4303.8,3.9361]
[1754791174960,2.1523,4303.9,4303.8,3.5054]
[1754791175461,5.36009009,4303.9,4303.8,3.2078]
[1754791175666,5.95221814,4303.9,4303.8,2.801]
[1754791175866,5.9521052,4303.9,4303.8,2.801]
[1754791176564,1.41304,4303.3,4302.8,0.372]
[1754791176866,2.1314,4302.6,4302.5,60.05503]
[1754791177069,2.1314,4302.6,4302.5,59.5903]
[1754791179058,2.1314,4302.6,4302.5,3.7793]
[1754791179264,2.1314,4302.4,4302.3,22.5825]
[1754791179561,2.1314,4302.4,4302.3,23.0473]
[1754791179966,0.59201511,4302.8,4302.7,2.1411]
[1754791180170,0.4493,4303.9,4302.7,2.1411]
[1754791180171,0.59225776,4303.9,4303.8,2.1411]
[1754791180465,0.59225776,4303.9,4302.3,27.639]
[1754791180466,3.2078,4304.0,4303.9,2.1411]
[1754791181068,5.3392,4304.0,4303.9,1.0363]
[1754791181264,5.93145776,4304.0,4303.9,0.3137]
[1754791181666,2.72365776,4304.0,4303.9,0.3137]
[1754791181868,2.1314,4304.0,4303.9,1.7084]
[1754791182160,2.1314,4304.0,4303.9,2.1411]
[1754791182568,2.1314,4304.0,4303.9,1.0363]
[1754791182766,2.1314,4304.0,4303.9,0.5715]
[1754791183366,2.1314,4304.0,4303.9,1.0363]
[1754791183870,2.1314,4304.0,4303.9,1.7084]
[1754791187361,2.1314,4304.0,4303.9,1.3364]
[1754791188680,2.1314,4304.0,4303.9,1.0363]
[1754791188978,2.1314,4304.0,4303.9,0.5715]
[1754791189965,0.8638,4303.7,4303.6,1.4083]
[1754791190173,2.1314,4303.7,4303.6,1.0363]
[1754791190373,2.1314,4303.7,4303.6,1.4083]
[1754791190575,2.1314,4303.7,4303.6,1.7084]
[1754791191068,1.7039,4303.7,4303.6,2.30083863]
[1754791191270,1.3131,4303.7,4303.6,2.30083863]
[1754791191469,0.3009,4303.7,4303.6,2.30083863]
[1754791191671,1.78287,4304.0,4303.6,1.03133863]
[1754791191977,2.64667,4304.0,4303.9,2.6411]
[1754791192477,3.09597,4304.0,4303.9,2.6411]
[1754791193277,3.09597,4304.0,4303.9,0.8137]
[1754791193577,3.09597,4304.0,4303.9,0.5]
[1754791194176,6.15488444,4304.0,4303.9,0.5]
[1754791194376,6.7471422,4304.0,4303.9,0.5]
[1754791195375,9.9549422,4304.0,4303.9,0.5]
[1754791196573,1.02758,4303.0,4302.9,0.8716]
[1754791196774,0.8638,4303.0,4302.9,0.73127984]
[1754791196972,0.8638,4303.0,4302.9,1.86817984]
[1754791197169,2.1314,4303.0,4302.9,1.86817984]
[1754791197369,2.1314,4303.0,4302.9,1.7084]
[1754791197572,2.1314,4303.0,4302.9,2.1411]
[1754791198774,2.1314,4303.0,4302.9,0.5715]
[1754791199176,2.1314,4303.0,4302.9,1.4083]
[1754791199380,2.1314,4303.0,4302.9,2.1411]
[1754791199581,1.7039,4303.0,4302.9,2.1411]
[1754791199876,0.46467,4303.1,4303.0,2.1411]
[1754791200083,0.46465,4303.2,4303.1,2.1411]
[1754791200776,0.91393,4303.4,4303.3,0.2578]
[1754791200983,1.05688776,4303.4,4303.3,2.1411]
[1754791201180,2.59603,4303.4,4303.3,2.1411]
[1754791201380,3.18828776,4303.4,4303.3,1.7084]
[1754791201580,0.46469,4302.8,4302.7,4.0446]
[1754791201883,2.59609,4302.8,4302.7,5.50898013]
[1754791202180,0.46469,4302.8,4302.7,5.50898013]
[1754791202781,1.52109,4302.8,4302.7,2.30118013]
[1754791202981,1.91189,4302.8,4302.7,2.30118013]
[1754791203482,2.16859,4302.8,4302.7,2.30118013]
[1754791203690,2.59609,4302.8,4302.7,2.30118013]
[1754791205382,2.1314,4302.8,4302.7,2.30118013]
[1754791205585,2.6314,4302.8,4302.7,2.30118013]
[1754791206082,0.5,4302.8,4302.7,2.30118013]
[1754791206788,2.6715,4302.8,4302.7,0.16008013]
[1754791207183,2.6715,4302.8,4302.7,0.72428013]
[1754791207485,2.6715,4302.8,4302.7,2.32348013]
[1754791207984,1.8319,4302.8,4302.7,2.32348013]
[1754791208186,0.5,4302.8,4302.7,2.32348013]
[1754791209182,2.6715,4302.8,4302.7,2.32342886]
[1754791209582,2.6715,4302.8,4302.7,2.65144167]
[1754791210087,1.5834,4302.8,4302.7,2.65144167]
[1754791210386,0.8067,4302.8,4302.7,2.65144167]
[1754791211176,0.5,4302.8,4302.7,5.85924167]
[1754791211989,0.5,4302.8,4302.7,5.85930727]
[1754791212880,0.5,4302.8,4302.7,27.47930727]
[1754791213276,1.5834,4302.8,4302.7,27.47930727]
[1754791213481,2.2097,4302.8,4302.7,27.47930727]
[1754791213893,2.6715,4302.8,4302.7,27.47930727]
[1754791214091,2.6715,4302.8,4302.7,27.47830727]
[1754791214291,2.6715,4302.8,4302.7,27.03230727]
[1754791214495,2.6715,4302.8,4302.7,27.47830727]
[1754791214685,0.5,4302.8,4302.7,27.47830727]
[1754791215193,1.1153,4302.8,4302.7,27.47830727]
[1754791215491,2.6715,4302.8,4302.7,27.47830727]
[1754791216689,1.8319,4302.8,4302.7,27.47830727]
[1754791217090,6.21333933,4302.8,4302.7,3.69590727]
[1754791217291,6.21333933,4302.8,4302.0,24.8228]
[1754791217292,0.8638,4302.1,4302.0,24.8228]
[1754791217497,1.9654,4302.1,4302.0,25.25306787]
[1754791217794,1.9654,4302.1,4302.0,3.2078]
[1754791220591,2.4654,4302.1,4302.0,3.2078]
[1754791223696,1.32858,4302.0,4301.9,0.5642]
[1754791223897,2.43018,4302.0,4301.9,0.9613]
[1754791224500,2.43018,4302.0,4301.9,1.4061]
[1754791224700,2.43018,4302.0,4301.9,0.2698]
[1754791224901,0.5,4302.1,4301.5,26.1097]
[1754791224902,2.43022,4301.6,4301.5,26.9852]
[1754791225197,0.4648,4301.8,4301.7,2.1634]
[1754791225393,0.4648,4301.8,4301.7,2.3238719]
[1754791225588,2.4302,4301.8,4301.7,2.3238719]
[1754791225795,2.4302,4301.8,4301.7,0.7246719]
[1754791225994,0.8638,4301.6,4301.5,3.2078]
[1754791226199,1.9654,4301.6,4301.5,3.2078]
[1754791226399,1.9654,4301.6,4301.5,3.36830291]
[1754791226600,1.9654,4301.6,4301.5,3.63810291]
[1754791227194,1.9654,4301.6,4301.5,3.4776]
[1754791227395,1.9654,4301.6,4301.5,5.3712]
[1754791227596,0.46479,4301.9,4301.5,4.24377183]
[1754791227798,0.5,4302.1,4301.5,4.24377183]
[1754791227799,0.5,4302.1,4302.0,1.7186]
[1754791228001,0.5,4302.1,4302.0,5.53161907]
[1754791229102,0.093,4302.1,4302.0,5.53161907]
[1754791230308,0.093,4302.1,4302.0,6.03161907]
[1754791231002,0.46469,4302.9,4302.7,2.1634]
[1754791231209,1.54803,4303.4,4303.3,2.1634]
[1754791231404,1.69487032,4303.4,4303.3,2.1634]
[1754791231603,1.07993,4303.4,4303.3,2.1634]
[1754791231999,2.63613,4303.4,4303.3,2.1634]
[1754791232200,3.25107032,4303.4,4303.3,0.5642]
[1754791233308,0.6153,4302.7,4302.6,1.1363]
[1754791233507,2.1715,4302.7,4302.6,23.94048801]
[1754791233812,2.1715,4302.7,4302.6,2.33148801]
[1754791234201,2.1715,4302.7,4302.6,0.73228801]
[1754791234511,2.63622,4302.6,4302.5,3.2078]
[1754791234713,2.63622,4302.6,4302.5,3.3760066]
[1754791235010,2.63622,4302.6,4302.5,3.6704066]
[1754791235613,2.63622,4302.6,4302.5,3.67039001]
[1754791236009,2.63622,4302.6,4302.5,3.94019001]
[1754791236410,2.63622,4302.6,4302.5,3.772]
[1754791236807,2.63622,4302.6,4302.5,5.53458645]
[1754791237002,1.79662,4302.6,4302.5,5.53458645]
[1754791237204,1.4207,4302.9,4302.8,0.8443]
[1754791237408,1.0382,4302.9,4302.8,2.1274]
[1754791237614,2.1223,4302.9,4302.8,2.1274]
[1754791238213,2.1223,4302.9,4302.8,1.6972]
[1754791238415,2.1223,4302.6,4302.5,4.6066]
[1754791238612,2.1223,4302.6,4302.5,4.77481752]
[1754791239014,2.1223,4302.6,4302.5,5.07321752]
[1754791239217,2.1223,4302.6,4302.5,5.50341752]
[1754791239612,1.0382,4302.6,4302.5,5.50341752]
[1754791241519,2.1223,4302.6,4302.5,5.50341752]
[1754791242621,0.46469,4302.8,4302.7,0.8443]
[1754791242819,0.8935,4303.0,4302.7,0.8443]
[1754791242820,0.46469,4302.9,4302.8,2.1274]
[1754791243018,0.46469,4302.9,4302.8,2.29561752]
[1754791243319,1.50289,4302.9,4302.8,2.29579432]
[1754791244114,2.58699,4302.9,4302.8,2.29579432]
[1754791244516,2.58699,4302.9,4302.8,2.29577857]
[1754791247312,2.58699,4302.9,4302.8,2.1274]
[1754791247516,2.58699,4302.9,4302.8,2.29574255]
[1754791248218,1.0382,4302.9,4302.8,2.29574255]
[1754791248727,3.25935537,4303.4,4303.3,2.1274]
[1754791248917,2.64453,4303.4,4303.3,5.3352]
[1754791249114,3.08693,4303.4,4303.3,2.1274]
[1754791249320,2.58693,4303.4,4303.3,0.5459]
[1754791250724,2.58693,4303.4,4303.3,2.1274]
[1754791250928,0.46461,4303.6,4303.3,1.01262922]
[1754791251122,0.46461,4303.6,4303.5,0.8443]
[1754791251420,1.50281,4303.6,4303.5,2.1274]
[1754791252022,0.61482537,4304.4,4304.3,1.829]
[1754791252220,1.0382,4304.5,4304.4,2.1274]
[1754791252420,2.1223,4304.5,4304.4,2.1274]
[1754791252621,2.1223,4304.5,4304.4,1.6972]
[1754791252821,2.1223,4304.5,4304.4,2.1274]
[1754791253022,0.4645,4304.6,4304.4,2.1274]
[1754791253023,0.2951,4304.6,4304.5,0.8529]
[1754791253222,2.1223,4304.6,4304.5,2.1274]
[1754791253429,2.1223,4304.2,4304.1,4.0521]
[1754791253732,2.1223,4304.2,4304.1,5.3352]
[1754791254122,0.46452,4304.4,4304.3,0.5436]
[1754791254432,0.46449,4304.7,4304.5,0.8443]
[1754791254633,0.46449,4304.7,4304.6,2.1274]
[1754791256025,2.14439,4304.7,4304.6,2.1274]
[1754791256224,2.58679,4304.7,4304.6,2.1274]
[1754791261121,1.76189,4304.7,4304.6,2.1274]
[1754791261326,0.4511,4305.5,4305.0,0.8443]
[1754791261522,2.1223,4305.7,4305.6,1.6575]
[1754791261829,3.20002314,4305.7,4305.6,2.1274]
[1754791262228,3.20002314,4305.7,4305.6,1.6972]
[1754791262429,2.58668,4305.7,4305.6,0.5459]
[1754791262635,1.88896068,4305.7,4304.6,3.2078]
[1754791262933,0.5871,4304.9,4304.8,1.6972]
[1754791263131,1.2974,4304.9,4304.8,2.1274]
[1754791263331,1.2974,4304.9,4304.6,3.6723]
[1754791263332,0.8249,4305.6,4305.0,1.2831]
[1754791263534,1.0382,4305.6,4305.5,0.8443]
[1754791263834,1.50259,4305.6,4305.5,2.1274]
[1754791264234,1.05149,4305.6,4305.5,2.1274]
[1754791264535,1.6712,4306.2,4305.2,3.2078]
[1754791264736,1.31066,4306.0,4305.9,0.8443]
[1754791264930,1.76176,4306.0,4305.9,2.1274]
[1754791265125,3.2078,4306.3,4305.9,2.1274]
[1754791265326,3.6685,4306.3,4306.2,0.8355]
[1754791265533,4.2708,4306.3,4306.2,2.0981]
[1754791265732,4.5222,4306.3,4306.2,2.0981]
[1754791265937,4.9185,4306.3,4306.2,2.0981]
[1754791266140,0.005,4306.4,4306.3,1.6746]
[1754791266431,0.4607,4307.2,4306.8,0.8355]
[1754791266736,2.1709,4306.9,4306.8,0.8355]
[1754791266925,2.1709,4306.9,4306.8,0.2911]
[1754791267123,2.1709,4306.6,4306.5,0.2911]
[1754791268327,2.1709,4306.6,4306.5,0.9793]
[1754791268532,2.1709,4306.6,4306.5,1.3678]
[1754791268734,2.1709,4306.6,4306.5,0.9793]
[1754791269533,2.1709,4306.6,4306.5,1.3678]
[1754791269734,2.1709,4306.6,4306.5,1.6475]
[1754791269939,2.1709,4306.6,4306.5,2.0981]
[1754791272033,3.2078,4307.5,4306.9,2.0981]
[1754791272238,4.5257,4307.5,4307.4,0.8355]
[1754791272535,6.453527,4307.5,4307.4,2.0981]
[1754791273127,6.453527,4307.5,4307.4,1.6475]
[1754791273333,2.1709,4307.1,4307.0,0.5558]
[1754791273745,2.1709,4307.1,4307.0,0.9793]
[1754791273930,2.1709,4306.8,4306.7,3.6313]
[1754791274134,2.1709,4306.8,4306.7,0.7146]
[1754791274329,2.1709,4306.8,4306.7,0.9793]
[1754791274535,2.1709,4306.8,4306.7,1.6475]
[1754791275135,2.1709,4306.8,4306.7,2.0981]
[1754791275738,2.1709,4306.8,4306.7,1.6475]
[1754791276042,2.1709,4306.8,4306.7,1.259]
[1754791276435,1.3139,4306.3,4306.2,3.2078]
[1754791276736,2.1709,4306.3,4306.2,3.2128]
[1754791277439,0.610627,4306.8,4306.7,2.0981]
[1754791277642,3.2078,4306.9,4306.7,2.0981]
[1754791277851,3.2078,4306.9,4306.8,2.0981]
[1754791278038,4.0615,4306.9,4306.8,2.0981]
[1754791278236,3.2078,4306.9,4306.8,2.0981]
[1754791279843,4.5222,4306.9,4306.8,2.0981]
[1754791280243,5.132827,4306.9,4306.8,2.0981]
[1754791281252,5.529127,4306.9,4306.8,2.0981]
[1754791282143,5.529127,4306.9,4306.8,1.5981]
[1754791282442,5.529127,4306.9,4306.8,1.259]
[1754791282647,5.529127,4306.9,4306.3,1.259]
[1754791282648,0.8537,4306.4,4306.3,1.259]
[1754791282848,2.1709,4306.4,4306.3,1.259]
[1754791283147,2.1709,4306.4,4306.3,1.9501]
[1754791283544,1.9176,4306.4,4306.3,1.9501]
[1754791283740,2.169,4306.4,4306.3,1.9501]
[1754791284544,2.63522,4306.3,4306.2,3.2128]
[1754791284944,2.63522,4306.3,4306.2,0.005]
[1754791285743,3.245847,4306.3,4306.2,0.005]
[1754791285944,2.745847,4306.3,4306.2,0.005]
[1754791286145,3.210167,4306.3,4306.2,0.005]
[1754791286449,3.210167,4306.3,4306.2,0.2961]
[1754791286652,0.610627,4306.3,4306.2,2.1031]
[1754791286844,1.057,4306.8,4306.7,2.0981]
[1754791287039,0.5,4306.8,4306.7,2.0981]
[1754791287338,1.31792,4307.2,4307.1,0.8355]
[1754791287544,0.8537,4306.7,4306.6,0.5444]
[1754791287738,0.8537,4306.7,4306.2,3.2128]
[1754791287938,0.8537,4306.7,4306.3,0.16984783]
[1754791288139,0.610627,4307.0,4306.6,1.68828]
[1754791288339,3.2078,4307.1,4307.0,0.8355]
[1754791288540,4.0615,4307.1,4307.0,2.0981]
[1754791288848,5.3787,4307.1,4307.0,2.0981]
[1754791289051,5.989327,4307.1,4307.0,2.0981]
[1754791289251,5.989327,4307.1,4307.0,0.5708]
[1754791289452,5.989327,4307.1,4307.0,2.0981]
[1754791290147,5.989327,4307.1,4307.0,1.259]
[1754791290346,0.8537,4306.8,4306.7,1.259]
[1754791290543,2.1709,4306.8,4306.7,1.259]
[1754791290945,2.6709,4306.8,4306.7,1.259]
[1754791291144,2.6709,4306.8,4306.7,2.0981]
[1754791291340,2.6709,4306.8,4306.7,0.2911]
[1754791292346,2.1709,4306.8,4306.7,0.7146]
[1754791292754,2.1709,4306.8,4306.7,0.2911]
[1754791293052,2.1709,4306.8,4306.7,0.45878676]
[1754791293247,5.14777022,4306.8,4306.7,0.16768676]
[1754791293552,5.14777022,4306.8,4306.2,0.005]
[1754791293553,2.1709,4306.3,4306.2,0.2961]
[1754791293751,2.1709,4306.3,4306.2,0.46382862]
[1754791294051,2.63522,4306.3,4306.2,0.17272862]
[1754791294547,3.88642671,4306.3,4306.2,0.005]
[1754791295349,2.63522,4306.3,4306.2,0.17285162]
[1754791295852,6.96388231,4306.3,4306.2,0.005]
[1754791296042,6.3233026,4306.3,4306.2,0.005]
[1754791297852,1.44064,4305.3,4305.2,1.6819]
[1754791298058,1.6987,4305.3,4305.2,1.8497406]
[1754791298254,1.6987,4305.3,4305.2,2.3016406]
[1754791298553,2.0783,4305.3,4305.2,2.3016406]
[1754791300153,2.0783,4305.3,4305.2,2.1338]
[1754791302856,2.0783,4305.1,4305.0,4.909]
[1754791303158,2.0783,4305.1,4305.0,5.07662392]
[1754791303359,2.0783,4305.1,4305.0,5.50922392]
[1754791304653,1.6528,4305.1,4305.0,5.50922392]
[1754791305159,1.6528,4305.1,4305.0,5.3416]
[1754791305459,0.5507,4305.1,4305.0,5.3416]
[1754791307058,1.6528,4305.1,4305.0,5.3416]
[1754791307752,0.610627,4305.9,4305.6,0.8513]
[1754791307960,5.935577,4306.0,4305.9,2.1338]
[1754791308165,2.732777,4306.0,4305.9,2.1338]
[1754791308354,2.54765,4306.0,4305.9,0.2923]
[1754791308558,1.1062,4305.6,4305.5,0.2923]
[1754791308761,2.54269,4305.6,4305.5,0.7249]
[1754791308958,2.54269,4305.6,4305.5,1.0292]
[1754791309162,2.54274,4305.3,4305.2,0.2923]
[1754791309358,2.54274,4305.3,4305.2,0.7249]
[1754791309558,2.54274,4305.3,4305.2,1.0292]
[1754791310159,1.2651,4304.9,4304.8,1.8415]
[1754791310360,1.2651,4304.9,4304.8,2.30132532]
[1754791310866,2.0783,4304.9,4304.8,2.30132532]
[1754791311167,2.0783,4304.9,4304.8,2.1338]
[1754791312866,2.0783,4304.8,4304.7,0.2923]
[1754791313260,2.0783,4304.8,4304.7,1.6819]
[1754791313460,2.0783,4304.8,4304.7,2.1338]
[1754791314261,2.0783,4304.3,4304.2,3.5001]
[1754791314461,2.0783,4304.3,4304.2,0.2923]
[1754791314855,0.46458,4303.9,4303.7,3.2078]
[1754791315054,2.54288,4303.9,4303.8,2.0465076]
[1754791315261,2.54288,4303.9,4303.8,2.1338]
[1754791315463,2.0783,4303.9,4303.8,2.1338]
[1754791315970,1.6528,4303.9,4303.8,2.1338]
[1754791316562,0.8396,4303.9,4303.8,2.1338]
[1754791318168,1.2732,4303.9,4303.8,2.1338]
[1754791318964,2.0783,4303.9,4303.8,2.1338]
[1754791321471,2.54289,4303.8,4303.7,3.2078]
[1754791321866,0.2889,4303.3,4303.2,0.4326]
[1754791322065,0.2889,4303.3,4303.0,3.2078]
[1754791322066,0.8396,4303.1,4303.0,3.8981]
[1754791322361,2.0783,4303.1,4303.0,3.9327]
[1754791322566,2.0783,4303.1,4303.0,3.5001]
[1754791322965,2.0783,4303.1,4303.0,3.2078]
[1754791323667,0.8396,4302.5,4302.4,3.5001]
[1754791323867,2.0783,4302.5,4302.4,4.237]
[1754791324065,2.0783,4302.5,4302.4,3.5001]
[1754791324363,0.8396,4302.0,4301.9,23.6738]
[1754791324569,1.6528,4302.0,4301.9,23.6738]
[1754791325269,0.8396,4302.0,4301.9,23.6738]
[1754791325465,0.2496,4302.0,4301.9,23.6738]
[1754791325672,1.70334,4302.4,4301.9,23.6738]
[1754791325865,1.645,4302.3,4302.2,0.8229]
[1754791326068,1.645,4302.3,4302.2,2.0656]
[1754791327065,3.2078,4302.8,4301.8,3.2078]
[1754791327271,2.0993,4301.9,4301.8,4.8439]
[1754791327867,2.0993,4301.9,4301.8,5.2734]
[1754791328574,1.645,4301.9,4301.8,5.2734]
[1754791329776,2.0993,4301.9,4301.8,5.2734]
[1754791330170,1.645,4301.9,4301.8,5.2734]
[1754791330372,0.4543,4302.2,4301.8,4.0307]
[1754791330573,0.8319,4302.0,4301.9,2.0656]
[1754791330777,1.2616,4302.0,4301.9,2.0656]
[1754791331077,1.3679,4303.0,4302.9,0.5214]
[1754791331271,2.56397,4303.0,4302.9,1.0071]
[1754791331471,2.0993,4302.7,4302.6,1.6549]
[1754791331677,2.0993,4302.6,4302.5,3.2078]
[1754791332267,2.0993,4302.6,4302.5,3.9388]
[1754791332867,2.0993,4302.6,4302.5,0.731]
[1754791333071,2.0993,4302.6,4302.5,0.3015]
[1754791333781,2.0993,4302.6,4302.5,0.731]
[1754791333979,0.8319,4302.6,4302.5,0.8229]
[1754791334180,0.5548,4302.6,4302.5,2.0656]
[1754791334372,0.4297,4302.9,4302.5,2.0656]
[1754791334573,1.2616,4302.8,4302.7,0.8229]
[1754791334878,4.6982811,4302.8,4302.7,2.0656]
[1754791335078,2.0993,4302.8,4302.7,2.0656]
[1754791338480,2.0993,4302.8,4302.7,1.0071]
[1754791340284,2.0993,4302.8,4302.7,1.6549]
[1754791340581,2.0993,4302.8,4302.7,2.0656]
[1754791340784,2.5993,4302.8,4302.7,2.0656]
[1754791342686,2.5993,4302.8,4302.7,0.3015]
[1754791343386,0.4297,4302.5,4302.4,1.2524]
[1754791343583,2.0993,4302.5,4302.4,1.6631]
[1754791344081,2.0993,4302.5,4302.4,2.0656]
[1754791344483,2.0993,4302.1,4302.0,1.0071]
[1754791344782,2.0993,4302.1,4302.0,1.9861649]
[1754791344984,2.0993,4302.1,4302.0,2.2314649]
[1754791345286,2.0993,4302.1,4302.0,2.23152287]
[1754791346077,1.645,4302.1,4302.0,2.23152287]
[1754791346281,0.61293594,4302.6,4302.5,0.8229]
[1754791346487,1.193,4302.8,4302.7,2.0656]
[1754791346692,2.145,4302.8,4302.7,2.0656]
[1754791346987,2.5993,4302.8,4302.7,2.0656]